bitfinex/quotes_BTCUSD_20240828
["timestamp","ask_amount","ask_price","bid_price","bid_amount"]
[1724888742785,0.03461055,59309.0,59308.0,1.21062735]
[1724888743031,0.00818,59309.0,59308.0,0.87340535]
[1724888743497,0.00818,59309.0,59308.0,1.77291012]
[1724888743713,0.00818,59309.0,59308.0,1.77091012]
[1724888744128,0.00818,59309.0,59308.0,1.78491012]
[1724888744334,0.00818,59309.0,59308.0,1.81874012]
[1724888744975,0.00818,59309.0,59308.0,1.83074012]
[1724888745389,0.00818,59309.0,59308.0,1.81674012]
[1724888745718,0.00818,59309.0,59308.0,1.83074012]
[1724888746125,0.00818,59309.0,59308.0,1.78291012]
[1724888746540,0.00818,59309.0,59308.0,1.79691012]
[1724888746757,0.00818,59309.0,59308.0,1.78491012]
[1724888747216,0.00818,59309.0,59308.0,1.83274012]
[1724888747421,0.00818,59309.0,59308.0,1.81874012]
[1724888747627,0.00818,59309.0,59308.0,1.83274012]
[1724888748335,0.00818,59309.0,59308.0,1.83074012]
[1724888748510,0.00818,59309.0,59308.0,1.81674012]
[1724888748963,0.00818,59309.0,59308.0,1.83074012]
[1724888749175,0.00818,59309.0,59308.0,1.81674012]
[1724888749414,0.00818,59309.0,59308.0,1.80474012]
[1724888749632,0.00818,59309.0,59308.0,1.83274012]
[1724888749972,0.00818,59309.0,59308.0,1.81874012]
[1724888750166,0.00818,59309.0,59308.0,1.83274012]
[1724888751591,0.00818,59309.0,59308.0,1.39263335]
[1724888752684,0.00818,59309.0,59308.0,1.36463335]
[1724888752881,0.00818,59309.0,59308.0,1.37863335]
[1724888753531,0.00818,59309.0,59308.0,1.39263335]
[1724888755087,0.00818,59309.0,59308.0,1.72985535]
[1724888755290,0.00818,59309.0,59308.0,1.39263335]
[1724888755940,0.00818,59309.0,59308.0,1.72985535]
[1724888756760,0.00818,59309.0,59308.0,1.39263335]
[1724888757998,0.00818,59309.0,59308.0,1.72985535]
[1724888759222,0.00818,59309.0,59308.0,1.39263335]
[1724888759697,0.00818,59309.0,59308.0,1.24443335]
[1724888759910,0.00818,59309.0,59308.0,1.22943335]
[1724888760141,0.00818,59309.0,59308.0,1.23443335]
[1724888760629,0.00818,59309.0,59308.0,1.22943335]
[1724888760864,0.514004,59309.0,59308.0,0.36337835]
[1724888761076,0.254988,59309.0,59308.0,0.1502575]
[1724888761291,0.592204,59309.0,59308.0,0.1502575]
[1724888761768,0.656204,59309.0,59308.0,0.1164275]
[1724888762047,1.330636,59309.0,59308.0,0.1024275]
[1724888762228,1.330636,59309.0,59299.0,0.0008998]
[1724888762229,0.337253,59303.0,59299.0,0.0008998]
[1724888762440,0.312533,59301.0,59300.0,0.02084721]
[1724888762656,0.36368683,59303.0,59300.0,0.02084721]
[1724888762879,0.168629,59302.0,59300.0,0.02084721]
[1724888763095,0.168631,59301.0,59300.0,0.02084721]
[1724888763990,0.168631,59301.0,59300.0,0.08844621]
[1724888764196,0.505881,59303.0,59300.0,0.08844621]
[1724888764414,0.337241,59305.0,59300.0,0.08844621]
[1724888764415,0.168624,59304.0,59300.0,0.08844621]
[1724888764634,0.00818,59309.0,59304.0,0.168621]
[1724888764838,0.00818,59309.0,59305.0,0.023]
[1724888765077,0.00818,59309.0,59305.0,0.04384635]
[1724888765274,0.168614,59307.0,59305.0,0.04384635]
[1724888765477,0.176791,59309.0,59305.0,0.04384635]
[1724888765696,0.176791,59309.0,59305.0,0.21246435]
[1724888766318,0.168611,59308.0,59305.0,0.21246435]
[1724888766967,0.168611,59308.0,59305.0,0.22646435]
[1724888767657,0.168611,59308.0,59305.0,0.24046435]
[1724888768072,0.168611,59308.0,59305.0,0.21246435]
[1724888768493,0.337223,59308.0,59305.0,0.07184635]
[1724888768714,0.168614,59307.0,59305.0,0.05784635]
[1724888768920,0.168614,59307.0,59305.0,0.07184635]
[1724888769132,0.02643264,59308.0,59307.0,0.168614]
[1724888769339,0.02643264,59308.0,59307.0,0.023]
[1724888769549,0.02643264,59308.0,59307.0,0.04383964]
[1724888771631,0.02643264,59308.0,59307.0,0.05783964]
[1724888772249,0.02643264,59308.0,59307.0,0.07183964]
[1724888773505,0.176789,59309.0,59307.0,0.07183964]
[1724888773717,0.176789,59309.0,59308.0,0.023]
[1724888774137,0.176789,59309.0,59308.0,0.04383677]
[1724888776158,0.176789,59309.0,59308.0,0.07183677]
[1724888776864,0.20322113,59309.0,59308.0,0.07183677]
[1724888777629,0.54043713,59309.0,59308.0,0.07183677]
[1724888777743,0.20322113,59309.0,59308.0,0.07183677]
[1724888779584,0.176789,59309.0,59308.0,0.07183677]
[1724888781146,0.514005,59309.0,59308.0,0.07183677]
[1724888781349,0.176789,59309.0,59308.0,0.07183677]
[1724888782948,0.03461195,59309.0,59308.0,0.07183677]
[1724888783576,0.00818,59309.0,59308.0,0.07183677]
[1724888785107,0.00818,59309.0,59308.0,1.05906383]
[1724888785312,0.00818,59309.0,59308.0,1.05569177]
[1724888785961,0.00818,59309.0,59308.0,1.04169177]
[1724888786426,0.00818,59309.0,59308.0,1.05569177]
[1724888786631,0.00818,59309.0,59308.0,1.02769177]
[1724888787029,0.00818,59309.0,59308.0,1.04169177]
[1724888788576,0.00818,59309.0,59308.0,1.05569177]
[1724888789175,0.00818,59309.0,59308.0,1.04169177]
[1724888789387,0.00818,59309.0,59308.0,1.05569177]
[1724888789819,0.00818,59309.0,59308.0,1.43174377]
[1724888790059,0.00818,59309.0,59308.0,1.42774377]
[1724888790318,0.00818,59309.0,59308.0,1.44174377]
[1724888790701,0.00818,59309.0,59308.0,1.41374377]
[1724888790912,0.00818,59309.0,59308.0,1.42774377]
[1724888791115,0.00818,59309.0,59308.0,1.44174377]
[1724888791687,0.00818,59309.0,59308.0,1.42774377]
[1724888791894,0.00818,59309.0,59308.0,1.44174377]
[1724888792292,0.00818,59309.0,59308.0,1.42774377]
[1724888792492,0.00818,59309.0,59308.0,1.44174377]
[1724888792940,0.00818,59309.0,59308.0,1.42774377]
[1724888793144,0.00818,59309.0,59308.0,1.59620454]
[1724888793753,0.00818,59309.0,59308.0,1.93542654]
[1724888793964,0.00818,59309.0,59308.0,1.92142654]
[1724888794114,0.00818,59309.0,59308.0,1.93542654]
[1724888794315,0.00818,59309.0,59308.0,2.41058878]
[1724888794523,0.00818,59309.0,59308.0,2.39658878]
[1724888794920,0.00818,59309.0,59308.0,2.41058878]
[1724888795323,0.00818,59309.0,59308.0,2.39658878]
[1724888795532,0.00818,59309.0,59308.0,2.29556252]
[1724888795728,0.00818,59309.0,59308.0,2.30956252]
[1724888795954,0.00818,59309.0,59308.0,2.30756252]
[1724888796190,0.00818,59309.0,59308.0,1.09447641]
[1724888796373,0.00818,59309.0,59308.0,1.08822117]
[1724888796548,0.00818,59309.0,59308.0,1.03769177]
[1724888796743,0.00818,59309.0,59308.0,0.70046977]
[1724888796997,0.00818,59309.0,59308.0,0.73199917]
[1724888797320,0.00818,59309.0,59308.0,1.07422117]
[1724888797548,0.00818,59309.0,59308.0,0.77399917]
[1724888797750,0.00818,59309.0,59308.0,0.72346977]
[1724888797878,0.00818,59309.0,59308.0,0.76001179]
[1724888798086,0.00818,59309.0,59308.0,0.75501179]
[1724888798290,0.00818,59309.0,59308.0,0.76901179]
[1724888798511,0.00818,59309.0,59308.0,0.76001179]
[1724888798918,0.00818,59309.0,59308.0,0.77401179]
[1724888799332,0.00818,59309.0,59308.0,0.76901179]
[1724888799936,0.03460971,59309.0,59308.0,0.77401179]
[1724888800483,0.03460971,59309.0,59308.0,0.76901179]
[1724888800688,0.03460971,59309.0,59308.0,0.71846977]
[1724888800896,0.03460971,59309.0,59308.0,0.38124777]
[1724888801107,0.03460971,59309.0,59308.0,0.62823823]
[1724888801350,0.03460971,59309.0,59308.0,0.29101623]
[1724888801569,0.03460971,59309.0,59308.0,0.24544777]
[1724888802226,0.03460971,59309.0,59308.0,0.2910212]
[1724888802439,0.03460971,59309.0,59308.0,0.24044777]
[1724888802877,0.03460971,59309.0,59308.0,0.24544777]
[1724888803485,0.00818,59309.0,59308.0,0.58266977]
[1724888803705,0.00818,59309.0,59308.0,0.65845441]
[1724888804319,0.00818,59309.0,59308.0,0.65345441]
[1724888804531,0.00818,59309.0,59308.0,1.0326229]
[1724888805179,0.00818,59309.0,59308.0,0.69048043]
[1724888805384,0.00818,59309.0,59308.0,1.02769825]
[1724888805622,0.00818,59309.0,59308.0,1.03269854]
[1724888806008,0.00818,59309.0,59308.0,1.03270967]
[1724888807247,0.00818,59309.0,59308.0,0.95683856]
[1724888808318,0.00818,59309.0,59308.0,1.09943856]
[1724888809546,0.00818,59309.0,59308.0,1.20060004]
[1724888809724,0.00818,59309.0,59308.0,1.09943856]
[1724888810506,0.00818,59309.0,59308.0,1.43666056]
[1724888812181,0.00818,59309.0,59308.0,1.53782204]
[1724888812386,0.00818,59309.0,59308.0,1.43666056]
[1724888812801,0.03460949,59309.0,59308.0,1.43666056]
[1724888813877,0.03460949,59309.0,59308.0,1.53782204]
[1724888816478,0.00818,59309.0,59308.0,1.43666056]
[1724888817131,0.00818,59309.0,59308.0,0.14770067]
[1724888817340,0.00818,59309.0,59308.0,0.07183677]
[1724888818038,0.230388,59309.0,59308.0,0.07183677]
[1724888818258,0.230388,59309.0,59308.0,0.05783677]
[1724888818482,0.230388,59309.0,59308.0,0.04883677]
[1724888818483,0.90482,59309.0,59308.0,0.04883677]
[1724888818691,0.96352,59309.0,59308.0,0.04883677]
[1724888819340,0.96352,59309.0,59308.0,0.03483677]
[1724888819763,0.96352,59309.0,59308.0,0.014]
[1724888819976,0.168622,59304.0,59302.0,0.21312085]
[1724888820208,0.505867,59304.0,59303.0,0.023]
[1724888820423,0.955412,59304.0,59303.0,0.04384487]
[1724888821709,0.955412,59304.0,59303.0,0.05784487]
[1724888822358,0.955412,59304.0,59303.0,0.07184487]
[1724888822577,0.98184456,59304.0,59303.0,0.07184487]
[1724888823027,0.98184456,59304.0,59303.0,0.04884487]
[1724888823259,1.31908956,59304.0,59303.0,0.04884487]
[1724888823494,1.31908956,59304.0,59303.0,0.028]
[1724888823943,1.31908956,59304.0,59303.0,0.014]
[1724888824429,1.65633456,59304.0,59303.0,0.014]
[1724888824662,1.729902,59304.0,59303.0,0.014]
[1724888824912,1.729902,59304.0,59301.0,0.0008998]
[1724888824913,1.629952,59302.0,59301.0,0.0008998]
[1724888825123,1.729952,59302.0,59301.0,0.0008998]
[1724888826879,1.729952,59302.0,59301.0,0.0148998]
[1724888827096,1.729952,59302.0,59301.0,0.0288998]
[1724888827578,1.729952,59302.0,59301.0,0.0148998]
[1724888827810,1.75639002,59302.0,59301.0,0.0208998]
[1724888828090,1.86624166,59302.0,59299.0,0.0008998]
[1724888828353,1.915574,59300.0,59299.0,0.0008998]
[1724888828601,2.015574,59300.0,59299.0,0.0008998]
[1724888828824,2.06733427,59300.0,59299.0,0.0008998]
[1724888829050,2.2045721,59300.0,59299.0,0.0008998]
[1724888829294,2.065374,59300.0,59299.0,0.0008998]
[1724888829719,2.071374,59300.0,59299.0,0.0008998]
[1724888829927,2.067374,59300.0,59299.0,0.0008998]
[1724888830135,2.065374,59300.0,59299.0,0.0008998]
[1724888830730,2.072374,59300.0,59299.0,0.0018998]
[1724888831164,2.10081741,59300.0,59299.0,0.0018998]
[1724888831377,2.09381741,59300.0,59299.0,0.0008998]
[1724888831825,2.10481741,59300.0,59299.0,0.0028998]
[1724888832265,2.10081741,59300.0,59299.0,0.0018998]
[1724888832479,2.32112932,59300.0,59299.0,0.0018998]
[1724888832688,2.32512932,59300.0,59299.0,0.0018998]
[1724888832922,2.32112932,59300.0,59299.0,0.0018998]
[1724888833137,2.31412932,59300.0,59299.0,0.0008998]
[1724888833358,2.32512932,59300.0,59299.0,0.0018998]
[1724888833815,2.32912932,59300.0,59299.0,0.0018998]
[1724888834026,2.32212932,59300.0,59299.0,0.0008998]
[1724888834244,2.32912932,59300.0,59299.0,0.0018998]
[1724888834671,2.16057768,59300.0,59299.0,0.0018998]
[1724888835304,2.18411255,59300.0,59299.0,0.0018998]
[1724888836900,2.207424,59295.0,59294.0,8e-07]
[1724888837118,2.207424,59295.0,59289.0,0.0008998]
[1724888837119,0.80137147,59290.0,59289.0,0.0008998]
[1724888837361,1.81334647,59290.0,59289.0,0.0008998]
[1724888837566,2.30243174,59290.0,59289.0,0.0008998]
[1724888837984,2.40593174,59290.0,59289.0,0.0008998]
[1724888838454,2.35417147,59290.0,59289.0,0.0008998]
[1724888838889,2.36035663,59290.0,59289.0,0.0008998]
[1724888839097,2.36035663,59290.0,59289.0,0.0018998]
[1724888839302,2.36235663,59290.0,59289.0,0.0018998]
[1724888839533,2.03708245,59290.0,59289.0,0.0018998]
[1724888839746,2.20574445,59290.0,59289.0,0.0018998]
[1724888840633,1.86641945,59290.0,59289.0,0.0018998]
[1724888841474,1.89286531,59290.0,59289.0,0.0018998]
[1724888842132,1.65059302,59290.0,59289.0,0.0018998]
[1724888842340,1.70419302,59290.0,59289.0,0.0018998]
[1724888842560,1.75409302,59290.0,59289.0,0.0018998]
[1724888843202,1.65059302,59290.0,59289.0,0.0018998]
[1724888844300,1.62414716,59290.0,59289.0,0.0018998]
[1724888845631,1.28682216,59290.0,59289.0,0.0018998]
[1724888845853,0.505987,59290.0,59289.0,0.1452998]
[1724888846541,0.505987,59290.0,59289.0,0.16623428]
[1724888846744,0.505987,59290.0,59289.0,0.1452998]
[1724888847186,0.943312,59290.0,59289.0,0.16623428]
[1724888847402,0.605987,59290.0,59289.0,0.16623428]
[1724888847620,0.605987,59290.0,59289.0,0.1442998]
[1724888848045,0.944312,59290.0,59289.0,0.1552998]
[1724888848264,0.606987,59290.0,59289.0,0.1552998]
[1724888848938,0.607987,59290.0,59289.0,0.1642998]
[1724888849571,0.607987,59290.0,59289.0,0.18523428]
[1724888849572,0.63443082,59290.0,59289.0,0.18523428]
[1724888849806,0.63443082,59290.0,59289.0,0.1642998]
[1724888852216,0.63443082,59290.0,59289.0,0.18523071]
[1724888853112,0.63443082,59290.0,59289.0,0.1642998]
[1724888854232,0.63443082,59290.0,59289.0,0.18523071]
[1724888854888,0.97175582,59290.0,59289.0,0.18523071]
[1724888855127,0.97175582,59290.0,59289.0,0.04183071]
[1724888855337,0.97175582,59290.0,59289.0,0.0208998]
[1724888855540,1.282637,59290.0,59289.0,0.0208998]
[1724888856639,1.078841,59290.0,59289.0,0.0208998]
[1724888857024,1.247503,59290.0,59289.0,0.0208998]
[1724888858010,0.910178,59290.0,59289.0,0.1027998]
[1724888859909,0.910996,59290.0,59289.0,0.1027998]
[1724888860139,0.910996,59290.0,59289.0,0.0917998]
[1724888860359,0.910996,59290.0,59289.0,0.0827998]
[1724888860575,0.912996,59290.0,59289.0,0.1027998]
[1724888860784,0.912996,59290.0,59289.0,0.0917998]
[1724888861198,0.912996,59290.0,59289.0,0.0947998]
[1724888861425,0.912996,59290.0,59289.0,0.1047998]
[1724888861426,0.913996,59290.0,59289.0,0.1047998]
[1724888861845,0.94044019,59290.0,59289.0,0.1047998]
[1724888864583,0.913996,59290.0,59289.0,0.1047998]
[1724888865705,0.913793,59290.0,59289.0,0.1047998]
[1724888869290,0.94023719,59290.0,59289.0,0.1047998]
[1724888869724,1.39580579,59290.0,59289.0,0.0228998]
[1724888869952,1.78673079,59290.0,59289.0,0.0228998]
[1724888870184,2.32452694,59290.0,59289.0,0.0228998]
[1724888870868,2.32352694,59290.0,59289.0,0.0128998]
[1724888871285,2.32252694,59290.0,59289.0,0.0008998]
[1724888871488,1.71538719,59290.0,59289.0,0.0008998]
[1724888871700,1.83363079,59290.0,59289.0,0.0008998]
[1724888871921,1.83363079,59290.0,59289.0,0.0018998]
[1724888872125,1.83363079,59290.0,59289.0,0.0008998]
[1724888872955,1.83363079,59290.0,59289.0,0.0018998]
[1724888873789,1.84163079,59290.0,59289.0,0.0018998]
[1724888874246,1.83363079,59290.0,59289.0,0.0008998]
[1724888874453,1.83363079,59290.0,59289.0,0.0018998]
[1724888874669,1.84063079,59290.0,59289.0,0.0018998]
[1724888875445,1.84063079,59290.0,59289.0,0.0008998]
[1724888875446,1.83363079,59290.0,59289.0,0.0008998]
[1724888876846,1.83963079,59290.0,59289.0,0.0008998]
[1724888877693,1.83363079,59290.0,59289.0,0.0008998]
[1724888878094,1.83863079,59290.0,59289.0,0.0008998]
[1724888878297,2.00718243,59290.0,59289.0,0.0008998]
[1724888883269,1.83863079,59290.0,59289.0,0.0008998]
[1724888883471,1.61688719,59290.0,59289.0,0.0008998]
[1724888883670,1.73513079,59290.0,59289.0,0.0008998]
[1724888885171,1.61688719,59290.0,59289.0,0.0008998]
[1724888885370,1.27956219,59290.0,59289.0,0.0827998]
[1724888885657,1.27956219,59290.0,59289.0,0.1484998]
[1724888886053,1.253118,59290.0,59289.0,0.1484998]
[1724888886383,1.248118,59290.0,59289.0,0.1484998]
[1724888886983,1.249118,59290.0,59289.0,0.1554998]
[1724888887605,1.249118,59290.0,59289.0,0.1644998]
[1724888888270,0.911793,59290.0,59289.0,0.1644998]
[1724888888884,0.911793,59290.0,59289.0,0.18543274]
[1724888889091,0.911793,59290.0,59289.0,0.1644998]
[1724888890694,0.911793,59290.0,59289.0,0.1595998]
[1724888892437,0.93823773,59290.0,59289.0,0.1595998]
[1724888893163,0.60091273,59290.0,59289.0,0.1595998]
[1724888893641,0.001818,59290.0,59289.0,0.20353147]
[1724888894487,0.001818,59290.0,59289.0,0.18753147]
[1724888894488,0.000818,59290.0,59289.0,0.18753147]
[1724888894699,0.000818,59290.0,59289.0,0.20153147]
[1724888894904,0.001818,59290.0,59289.0,0.21453147]
[1724888895559,0.507805,59290.0,59289.0,0.21453147]
[1724888896718,0.17048,59290.0,59289.0,0.21453147]
[1724888897117,0.1969212,59290.0,59289.0,0.21453147]
[1724888899869,0.0282592,59290.0,59289.0,0.38319647]
[1724888902494,0.0282592,59290.0,59289.0,0.72052647]
[1724888903126,0.0282592,59290.0,59289.0,1.05785647]
[1724888903593,0.001818,59290.0,59289.0,1.05785647]
[1724888904430,0.001818,59290.0,59289.0,1.39518647]
[1724888904630,0.001818,59290.0,59289.0,1.39718647]
[1724888905259,0.001818,59290.0,59289.0,1.43600647]
[1724888905518,0.000818,59304.0,59299.0,0.843182]
[1724888905658,0.000818,59304.0,59299.0,1.30817638]
[1724888905859,0.000818,59304.0,59299.0,1.66633464]
[1724888906481,0.000818,59304.0,59299.0,1.32906164]
[1724888907555,0.000818,59304.0,59299.0,1.34306164]
[1724888908703,0.000818,59304.0,59299.0,1.35706164]
[1724888909130,0.000818,59304.0,59299.0,1.70133464]
[1724888909366,0.000818,59304.0,59299.0,1.69933464]
[1724888909805,0.000818,59304.0,59299.0,1.06656726]
[1724888910011,0.000818,59304.0,59299.0,1.40384026]
[1724888910226,0.000818,59304.0,59299.0,1.03856726]
[1724888910428,0.000818,59304.0,59299.0,1.38984026]
[1724888910654,0.000818,59304.0,59299.0,1.40384026]
[1724888911320,0.000818,59304.0,59299.0,1.38984026]
[1724888911558,0.000818,59304.0,59299.0,1.40384026]
[1724888912200,0.02643389,59301.0,59299.0,1.05256726]
[1724888912690,0.02643389,59301.0,59299.0,0.20438526]
[1724888913094,0.168628,59302.0,59299.0,0.20438526]
[1724888913300,0.168628,59302.0,59299.0,0.37302126]
[1724888913477,0.168625,59303.0,59299.0,0.38702126]
[1724888913748,0.16944,59304.0,59299.0,0.38702126]
[1724888914167,0.168625,59303.0,59299.0,0.38702126]
[1724888914930,0.168629,59302.0,59299.0,0.38702126]
[1724888915563,0.168631,59301.0,59299.0,0.21838526]
[1724888915801,0.337259,59302.0,59299.0,0.21838526]
[1724888916002,0.168632,59301.0,59299.0,0.21838526]
[1724888916767,0.168632,59301.0,59299.0,0.28598526]
[1724888916989,0.169452,59300.0,59299.0,0.28598526]
[1724888917191,0.169452,59300.0,59299.0,0.11648526]
[1724888917192,0.843988,59300.0,59299.0,0.11648526]
[1724888917804,0.843988,59300.0,59299.0,0.028]
[1724888918914,0.843988,59300.0,59299.0,0.04887038]
[1724888919114,0.843988,59300.0,59299.0,0.03487038]
[1724888919315,0.843988,59300.0,59299.0,0.02087038]
[1724888919544,0.87042422,59300.0,59299.0,0.03487038]
[1724888919755,0.87042422,59300.0,59299.0,0.028]
[1724888919945,0.53315622,59300.0,59299.0,0.028]
[1724888920178,0.53315622,59300.0,59299.0,0.1696]
[1724888920585,0.53315622,59300.0,59299.0,0.19047038]
[1724888921177,0.53315622,59300.0,59299.0,0.1696]
[1724888921531,0.53315622,59300.0,59299.0,0.19047038]
[1724888921901,0.53315622,59300.0,59299.0,0.1696]
[1724888922124,0.53315622,59300.0,59299.0,0.19047038]
[1724888924514,0.19588822,59300.0,59299.0,0.19047038]
[1724888925829,0.02725422,59300.0,59299.0,0.19047038]
[1724888926691,0.02725422,59300.0,59299.0,0.71937938]
[1724888927437,0.02725422,59300.0,59299.0,1.05665238]
[1724888927684,0.02725422,59300.0,59299.0,0.71937938]
[1724888934799,0.02725422,59300.0,59299.0,0.70537938]
[1724888935004,0.02725422,59300.0,59299.0,0.71937938]
[1724888935428,0.02725422,59300.0,59299.0,0.70537938]
[1724888935640,0.02725422,59300.0,59299.0,0.69137938]
[1724888935843,0.02725422,59300.0,59299.0,0.70537938]
[1724888936256,0.02725422,59300.0,59299.0,0.71937938]
[1724888936492,0.02725422,59300.0,59299.0,0.69137938]
[1724888936703,0.3454,59309.0,59300.0,0.1442]
[1724888936910,0.3454,59309.0,59299.0,0.07187038]
[1724888936911,0.00818,59309.0,59307.0,0.1442]
[1724888937333,0.00818,59309.0,59308.0,0.02084693]
[1724888937533,0.03461408,59309.0,59307.0,0.1442]
[1724888937771,0.03461408,59309.0,59308.0,0.18945793]
[1724888937980,0.03461408,59309.0,59308.0,0.21245793]
[1724888939083,0.03461408,59309.0,59308.0,0.29535793]
[1724888939298,0.03461408,59309.0,59308.0,0.30935793]
[1724888939706,0.03461408,59309.0,59308.0,0.64657993]
[1724888940131,0.03461408,59309.0,59308.0,0.30935793]
[1724888940889,0.03461408,59309.0,59308.0,0.32335793]
[1724888941264,0.03461408,59309.0,59308.0,0.30935793]
[1724888941676,0.03461408,59309.0,59308.0,0.32335793]
[1724888942331,0.03461408,59309.0,59308.0,0.30935793]
[1724888942533,0.03461408,59309.0,59308.0,0.32335793]
[1724888942666,0.03461408,59309.0,59308.0,0.30935793]
[1724888943105,0.03461408,59309.0,59308.0,0.32335793]
[1724888943302,0.03461408,59309.0,59308.0,0.33735793]
[1724888945030,0.03461408,59309.0,59308.0,0.32335793]
[1724888945305,0.03461408,59309.0,59308.0,0.30935793]
[1724888945502,0.03461408,59309.0,59308.0,0.32335793]
[1724888946328,0.03461408,59309.0,59308.0,0.15474693]
[1724888946558,0.03461408,59309.0,59308.0,0.04884693]
[1724888946559,0.85122,59309.0,59308.0,0.04884693]
[1724888946980,0.514004,59309.0,59308.0,0.18764693]
[1724888947133,0.514004,59309.0,59308.0,0.1668]
[1724888947478,0.514004,59309.0,59308.0,0.18764131]
[1724888948012,0.514004,59309.0,59308.0,0.04884131]
[1724888950009,0.034614,59309.0,59308.0,0.04884131]
[1724888950466,0.034614,59309.0,59308.0,0.38185231]
[1724888951002,0.034614,59309.0,59308.0,0.21324131]
[1724888953419,0.00818,59309.0,59308.0,0.21324131]
[1724888954787,0.00818,59309.0,59308.0,0.38185231]
[1724888957374,0.00818,59309.0,59308.0,0.71907431]
[1724888957575,0.00818,59309.0,59308.0,1.05629631]
[1724888958004,0.03461362,59309.0,59308.0,1.05629631]
[1724888958833,0.03461362,59309.0,59308.0,0.71907431]
[1724888963860,0.20322162,59309.0,59308.0,0.21324131]
[1724888964101,0.03461362,59309.0,59308.0,0.07184131]
[1724888964365,0.03461362,59309.0,59308.0,0.04884131]
[1724888964366,0.20322162,59309.0,59308.0,0.04884131]
[1724888964601,0.87765362,59309.0,59308.0,0.04884131]
[1724888965062,0.87765362,59309.0,59308.0,0.028]
[1724888965303,0.514004,59309.0,59308.0,0.1101]
[1724888965810,0.514004,59309.0,59308.0,0.02075338]
[1724888966259,0.514004,59309.0,59308.0,0.01]
[1724888966466,0.514004,59309.0,59308.0,0.03075338]
[1724888966673,0.514004,59309.0,59308.0,0.01]
[1724888967089,0.514004,59309.0,59308.0,0.04175338]
[1724888967503,0.514004,59309.0,59308.0,0.02075338]
[1724888967719,0.514004,59309.0,59308.0,0.011]
[1724888967968,0.514004,59309.0,59308.0,0.03975338]
[1724888968372,0.54043793,59309.0,59308.0,0.03975338]
[1724888972497,0.87765393,59309.0,59308.0,0.03975338]
[1724888973611,0.85122,59309.0,59308.0,0.03975338]
[1724888974540,0.514004,59309.0,59308.0,0.12245338]
[1724888974755,0.514004,59309.0,59308.0,0.18505338]
[1724888977405,0.514004,59309.0,59308.0,0.17705338]
[1724888977651,0.176788,59309.0,59308.0,0.16605338]
[1724888977880,0.176788,59309.0,59308.0,0.17405338]
[1724888978107,0.20322183,59309.0,59308.0,0.18505338]
[1724888978347,0.20322183,59309.0,59308.0,0.16605338]
[1724888978582,0.20322183,59309.0,59308.0,0.18005338]
[1724888978802,0.20322183,59309.0,59308.0,0.19405338]
[1724888979276,0.03461383,59309.0,59308.0,0.19405338]
[1724888979747,0.37182983,59309.0,59308.0,0.19405338]
[1724888979967,0.54043783,59309.0,59308.0,0.19405338]
[1724888983621,0.85122,59309.0,59308.0,0.19405338]
[1724888984758,0.84304,59309.0,59308.0,0.19405338]
[1724888985985,0.84304,59309.0,59308.0,0.1107]
[1724888986181,0.84304,59309.0,59308.0,0.13132355]
[1724888986814,0.86947303,59309.0,59308.0,0.13132355]
[1724888987035,0.86947303,59309.0,59308.0,0.1107]
[1724888987687,0.86947303,59309.0,59308.0,0.13132355]
[1724888989643,0.86947303,59309.0,59308.0,0.13222335]
[1724888989862,0.87029103,59309.0,59308.0,0.13222335]
[1724888993509,0.843858,59309.0,59308.0,0.13222335]
[1724888999624,0.53307497,59309.0,59308.0,0.13222335]
[1724889003370,0.87029097,59309.0,59308.0,0.13222335]
[1724889003588,1.181074,59309.0,59308.0,0.04952335]
[1724889003809,1.181074,59309.0,59308.0,0.0288998]
[1724889003810,1.50451163,59309.0,59308.0,0.0288998]
[1724889004051,2.17894363,59309.0,59308.0,0.0288998]
[1724889004274,1.84872763,59309.0,59308.0,0.0288998]
[1724889004483,2.18594363,59309.0,59308.0,0.0288998]
[1724889005099,2.18594363,59309.0,59308.0,0.0148998]
[1724889005317,2.18594363,59309.0,59308.0,0.0158998]
[1724889005544,2.19238468,59309.0,59308.0,0.0148998]
[1724889005982,2.19238468,59309.0,59308.0,0.0018998]
[1724889006194,2.36093632,59309.0,59308.0,0.0018998]
[1724889007068,2.36093632,59309.0,59308.0,0.0028998]
[1724889007926,2.21882549,59309.0,59308.0,0.0028998]
[1724889008161,2.21882549,59309.0,59308.0,0.0018998]
[1724889008376,2.22082549,59309.0,59308.0,0.0028998]
[1724889008790,2.21882549,59309.0,59308.0,0.0018998]
[1724889008994,2.22082549,59309.0,59308.0,0.0028998]
[1724889011206,2.22082549,59309.0,59290.0,0.50630766]
[1724889011207,0.442619,59291.0,59290.0,0.50630766]
[1724889011420,1.06673463,59291.0,59290.0,0.50630766]
[1724889011630,1.50405363,59291.0,59290.0,0.0008998]
[1724889012115,1.86781592,59291.0,59290.0,0.0008998]
[1724889012612,1.86781592,59291.0,59290.0,0.0078998]
[1724889012842,1.86781592,59291.0,59290.0,0.0168998]
[1724889013958,1.76251592,59291.0,59290.0,0.0168998]
[1724889014986,1.76887215,59291.0,59290.0,0.0168998]
[1724889016686,1.74242886,59291.0,59290.0,0.0168998]
[1724889020038,1.76887212,59291.0,59290.0,0.0168998]
[1724889022183,1.87417212,59291.0,59290.0,0.0168998]
[1724889023668,1.84772886,59291.0,59290.0,0.0168998]
[1724889024525,1.84972886,59291.0,59290.0,0.0168998]
[1724889024983,2.0182805,59291.0,59290.0,0.0168998]
[1724889025194,1.84772886,59291.0,59290.0,0.0168998]
[1724889025788,1.84772886,59291.0,59290.0,0.0098998]
[1724889025954,1.84772886,59291.0,59290.0,0.0008998]
[1724889026159,1.84772886,59291.0,59290.0,0.0028998]
[1724889026596,1.84772886,59291.0,59290.0,0.0068998]
[1724889026808,1.72959123,59291.0,59290.0,0.0068998]
[1724889027013,1.84772886,59291.0,59290.0,0.0068998]
[1724889027633,1.72959123,59291.0,59290.0,0.0068998]
[1724889027784,1.74242886,59291.0,59290.0,0.0068998]
[1724889029859,1.7688734,59291.0,59290.0,0.0068998]
[1724889030066,1.6002144,59291.0,59290.0,0.0068998]
[1724889030697,2.04272504,59291.0,59290.0,0.0068998]
[1724889030921,1.8741734,59291.0,59290.0,0.0068998]
[1724889033478,1.84772886,59291.0,59290.0,0.0068998]
[1724889033693,1.84972886,59291.0,59290.0,0.0068998]
[1724889034138,2.19204786,59291.0,59290.0,0.0068998]
[1724889034359,2.24400677,59291.0,59290.0,0.0068998]
[1724889034572,1.518241,59279.0,59278.0,0.0008998]
[1724889034801,1.74167863,59279.0,59278.0,0.0008998]
[1724889035043,1.84167863,59279.0,59278.0,0.0008998]
[1724889035512,1.78997863,59279.0,59278.0,0.0008998]